[Event "*** Titled Tuesday Blitz"]
[Site "Chess.com"]
[Date "2020.11.03"]
[Round "3"]
[White "chito89"]
[Black "PlotnikovPavel"]
[Result "1-0"]
[WhiteElo "2781"]
[BlackElo "2452"]
[TimeControl "180+1"]
[EndTime "10:30:42 PST"]
[Termination "chito89 won by checkmate"]

1. d4 {[%clk 0:02:57.2]} 1... Nf6 {[%clk 0:02:59.4]} 2. c4 {[%clk 0:02:56.8]}
2... g6 {[%clk 0:02:59]} 3. Nc3 {[%clk 0:02:56.4]} 3... Bg7 {[%clk 0:02:59.2]}
4. e4 {[%clk 0:02:56]} 4... d6 {[%clk 0:02:59.9]} 5. Be2 {[%clk 0:02:51.4]} 5...
O-O {[%clk 0:02:59.2]} 6. Bg5 {[%clk 0:02:51.3]} 6... c5 {[%clk 0:02:58.1]} 7.
d5 {[%clk 0:02:50.7]} 7... h6 {[%clk 0:02:57.4]} 8. Bf4 {[%clk 0:02:49.5]} 8...
Qa5 {[%clk 0:02:54.2]} 9. Qd2 {[%clk 0:02:49.2]} 9... Kh7 {[%clk 0:02:54.2]} 10.
Nf3 {[%clk 0:02:47.1]} 10... a6 {[%clk 0:02:53.3]} 11. O-O {[%clk 0:02:46]}
11... b5 {[%clk 0:02:47.6]} 12. e5 {[%clk 0:02:42.7]} 12... Nh5 {[%clk
0:02:27.4]} 13. exd6 {[%clk 0:02:38.3]} 13... Nxf4 {[%clk 0:01:58.3]} 14. dxe7
{[%clk 0:02:34.9]} 14... Nh3+ {[%clk 0:01:41.9]} 15. gxh3 {[%clk 0:02:33.1]}
15... Re8 {[%clk 0:01:41.7]} 16. d6 {[%clk 0:02:30]} 16... Bd7 {[%clk
0:01:39.2]} 17. Nd5 {[%clk 0:02:18.5]} 17... Qxd2 {[%clk 0:01:20.7]} 18. Nxd2
{[%clk 0:02:19.4]} 18... Nc6 {[%clk 0:01:17]} 19. Nb6 {[%clk 0:02:08.3]} 19...
Ra7 {[%clk 0:01:11.1]} 20. Rfe1 {[%clk 0:01:59.4]} 20... Bxb2 {[%clk 0:00:58.7]}
21. Ne4 {[%clk 0:01:52.2]} 21... Bd4 {[%clk 0:00:45.5]} 22. Rad1 {[%clk
0:01:47.6]} 22... Kg7 {[%clk 0:00:31.4]} 23. cxb5 {[%clk 0:01:46.3]} 23... axb5
{[%clk 0:00:29.7]} 24. Bxb5 {[%clk 0:01:47.2]} 24... Ne5 {[%clk 0:00:23.2]} 25.
Nxd7 {[%clk 0:01:42.4]} 25... Nxd7 {[%clk 0:00:18.4]} 26. a4 {[%clk 0:01:38.5]}
26... f5 {[%clk 0:00:17.5]} 27. Nd2 {[%clk 0:01:36.8]} 27... Bc3 {[%clk
0:00:11.8]} 28. Nc4 {[%clk 0:01:33.2]} 28... Bxe1 {[%clk 0:00:10.8]} 29. Rxe1
{[%clk 0:01:34.1]} 29... Kf6 {[%clk 0:00:09]} 30. f4 {[%clk 0:01:33]} 30... g5
{[%clk 0:00:04.2]} 31. Ne5 {[%clk 0:01:30.9]} 31... Nxe5 {[%clk 0:00:02.2]} 32.
fxe5+ {[%clk 0:01:30.3]} 32... Kf7 {[%clk 0:00:02.5]} 33. e6+ {[%clk 0:01:29.5]}
33... Kf6 {[%clk 0:00:03.1]} 34. Bxe8 {[%clk 0:01:27.7]} 34... c4 {[%clk
0:00:02.9]} 35. Bb5 {[%clk 0:01:23.4]} 35... Rxe7 {[%clk 0:00:02.8]} 36. dxe7
{[%clk 0:01:22]} 36... Kxe7 {[%clk 0:00:03.7]} 37. Bxc4 {[%clk 0:01:20.6]} 37...
h5 {[%clk 0:00:04.6]} 38. Kg2 {[%clk 0:01:18.1]} 38... g4 {[%clk 0:00:05.5]} 39.
Kg3 {[%clk 0:01:16.8]} 39... gxh3 {[%clk 0:00:05.4]} 40. Kh4 {[%clk 0:01:12.9]}
40... f4 {[%clk 0:00:06]} 41. Kxh3 {[%clk 0:01:11.5]} 41... f3 {[%clk
0:00:06.9]} 42. Kg3 {[%clk 0:01:11.1]} 42... f2 {[%clk 0:00:07.8]} 43. Kxf2
{[%clk 0:01:10.7]} 43... h4 {[%clk 0:00:08.7]} 44. Kg2 {[%clk 0:01:10.3]} 44...
h3+ {[%clk 0:00:09.6]} 45. Kxh3 {[%clk 0:01:10.2]} 45... Kd8 {[%clk 0:00:09]}
46. Kg3 {[%clk 0:01:08.7]} 46... Ke8 {[%clk 0:00:09.9]} 47. h4 {[%clk 0:01:08]}
47... Ke7 {[%clk 0:00:10.8]} 48. h5 {[%clk 0:01:07.3]} 48... Kf8 {[%clk
0:00:11.7]} 49. h6 {[%clk 0:01:06.5]} 49... Kg8 {[%clk 0:00:11.1]} 50. a5 {[%clk
0:01:04.7]} 50... Kh7 {[%clk 0:00:12]} 51. a6 {[%clk 0:01:04.1]} 51... Kxh6
{[%clk 0:00:12.9]} 52. a7 {[%clk 0:01:03.8]} 52... Kg7 {[%clk 0:00:13.4]} 53.
a8=Q {[%clk 0:01:02.9]} 53... Kf6 {[%clk 0:00:14.3]} 54. e7 {[%clk 0:01:02.2]}
54... Kg6 {[%clk 0:00:13.3]} 55. e8=Q+ {[%clk 0:01:01.3]} 55... Kh6 {[%clk
0:00:13.8]} 56. Qac6+ {[%clk 0:00:59.2]} 56... Kg5 {[%clk 0:00:13.7]} 57. Re5#
{[%clk 0:00:57.9]} 1-0

[Event "*** Titled Tuesday Blitz"]
[Site "Chess.com"]
[Date "2020.11.03"]
[Round "3"]
[White "starworld123"]
[Black "fyall777"]
[Result "0-1"]
[WhiteElo "2665"]
[BlackElo "2444"]
[TimeControl "180+1"]
[EndTime "10:30:43 PST"]
[Termination "fyall777 won by resignation"]

1. Nf3 {[%clk 0:02:46.9]} 1... Nf6 {[%clk 0:02:57]} 2. d3 {[%clk 0:02:47.8]}
2... g6 {[%clk 0:02:57]} 3. Nbd2 {[%clk 0:02:48.7]} 3... Bg7 {[%clk 0:02:57.3]}
4. g3 {[%clk 0:02:49.6]} 4... O-O {[%clk 0:02:57.6]} 5. Bg2 {[%clk 0:02:50.5]}
5... b5 {[%clk 0:02:57.9]} 6. O-O {[%clk 0:02:51.4]} 6... Bb7 {[%clk 0:02:57.7]}
7. e4 {[%clk 0:02:52.3]} 7... c5 {[%clk 0:02:46.1]} 8. a4 {[%clk 0:02:53.2]}
8... a6 {[%clk 0:02:43.4]} 9. Re1 {[%clk 0:02:54.1]} 9... d6 {[%clk 0:02:38.9]}
10. c3 {[%clk 0:02:53.7]} 10... Nbd7 {[%clk 0:02:35.4]} 11. Qc2 {[%clk 0:02:54]}
11... Qc7 {[%clk 0:02:29.5]} 12. b3 {[%clk 0:02:45.6]} 12... Rfc8 {[%clk
0:02:19.4]} 13. Bb2 {[%clk 0:02:44.8]} 13... Nb6 {[%clk 0:02:10.9]} 14. a5
{[%clk 0:02:40.1]} 14... Nbd7 {[%clk 0:02:10.9]} 15. c4 {[%clk 0:02:41]} 15...
e6 {[%clk 0:01:57.7]} 16. Nb1 {[%clk 0:02:29.5]} 16... Bc6 {[%clk 0:01:40.3]}
17. Nbd2 {[%clk 0:02:24.8]} 17... e5 {[%clk 0:01:30.5]} 18. Bc3 {[%clk
0:02:15.5]} 18... Nf8 {[%clk 0:01:30.1]} 19. Nf1 {[%clk 0:02:09.7]} 19... Ne6
{[%clk 0:01:29.7]} 20. Ne3 {[%clk 0:02:09.8]} 20... Nd4 {[%clk 0:01:28]} 21. Qb2
{[%clk 0:02:09.3]} 21... Rab8 {[%clk 0:01:24.6]} 22. Bxd4 {[%clk 0:02:04.1]}
22... cxd4 {[%clk 0:01:19.5]} 23. Nd5 {[%clk 0:02:04.7]} 23... Qb7 {[%clk
0:01:13]} 24. Nb6 {[%clk 0:02:01.2]} 24... Rc7 {[%clk 0:01:10.8]} 25. Rec1
{[%clk 0:01:59.1]} 25... Nd7 {[%clk 0:01:09.7]} 26. Nxd7 {[%clk 0:01:38.9]}
26... Bxd7 {[%clk 0:01:09.8]} 27. Qa3 {[%clk 0:01:39.5]} 27... Bf8 {[%clk
0:01:07.3]} 28. Qa2 {[%clk 0:01:31.4]} 28... bxc4 {[%clk 0:00:58.4]} 29. bxc4
{[%clk 0:01:32.3]} 29... Qb3 {[%clk 0:00:54.7]} 30. Qe2 {[%clk 0:01:19.3]} 30...
Bh6 {[%clk 0:00:52.4]} 31. Rd1 {[%clk 0:01:10.3]} 31... Rcb7 {[%clk 0:00:51.8]}
32. c5 {[%clk 0:01:09.3]} 32... Qe6 {[%clk 0:00:42]} 33. cxd6 {[%clk 0:01:07.8]}
33... Qxd6 {[%clk 0:00:42.2]} 34. Nd2 {[%clk 0:00:30.3]} 34... Be6 {[%clk
0:00:42.1]} 35. Nc4 {[%clk 0:00:19.6]} 35... Bxc4 {[%clk 0:00:41.1]} 36. dxc4
{[%clk 0:00:20.3]} 36... Rb2 {[%clk 0:00:41.4]} 37. Qd3 {[%clk 0:00:20]} 37...
R8b3 {[%clk 0:00:36.1]} 38. Qf1 {[%clk 0:00:20.6]} 38... Qc5 {[%clk 0:00:36]}
39. Rab1 {[%clk 0:00:19.9]} 39... Rxb1 {[%clk 0:00:33.7]} 40. Rxb1 {[%clk
0:00:20.8]} 40... Rxb1 {[%clk 0:00:33.7]} 41. Qxb1 {[%clk 0:00:20.6]} 41... Qxc4
{[%clk 0:00:34.4]} 42. Qb8+ {[%clk 0:00:21.1]} 42... Bf8 {[%clk 0:00:34.7]} 43.
Qxe5 {[%clk 0:00:21.7]} 43... d3 {[%clk 0:00:34]} 44. Qd5 {[%clk 0:00:20.4]}
44... Qc1+ {[%clk 0:00:32.2]} 45. Bf1 {[%clk 0:00:20.7]} 45... d2 {[%clk
0:00:32.8]} 46. Kg2 {[%clk 0:00:16.5]} 46... d1=Q {[%clk 0:00:32.9]} 0-1

[Event "*** Titled Tuesday Blitz"]
[Site "Chess.com"]
[Date "2020.11.03"]
[Round "3"]
[White "Dr-Bassem"]
[Black "Kavyev_Ruslan"]
[Result "1-0"]
[WhiteElo "2802"]
[BlackElo "2510"]
[TimeControl "180+1"]
[EndTime "10:30:44 PST"]
[Termination "Dr-Bassem won by resignation"]

1. e4 {[%clk 0:03:00.9]} 1... c5 {[%clk 0:02:59.9]} 2. Nf3 {[%clk 0:03:00.5]}
2... d6 {[%clk 0:03:00.2]} 3. g3 {[%clk 0:03:00.8]} 3... g6 {[%clk 0:02:58.5]}
4. Bg2 {[%clk 0:03:00.7]} 4... Bg7 {[%clk 0:02:59.4]} 5. O-O {[%clk 0:03:01.1]}
5... Nc6 {[%clk 0:03:00]} 6. c3 {[%clk 0:03:01.4]} 6... e5 {[%clk 0:02:55.1]} 7.
d3 {[%clk 0:03:01]} 7... Nge7 {[%clk 0:02:55.4]} 8. a3 {[%clk 0:03:01.7]} 8...
O-O {[%clk 0:02:56]} 9. b4 {[%clk 0:03:01.9]} 9... b6 {[%clk 0:02:53.3]} 10.
Nbd2 {[%clk 0:03:00.2]} 10... h6 {[%clk 0:02:52.3]} 11. Bb2 {[%clk 0:02:56.1]}
11... Kh7 {[%clk 0:02:51.4]} 12. Nc4 {[%clk 0:02:55.2]} 12... Be6 {[%clk
0:02:36.1]} 13. b5 {[%clk 0:02:54.4]} 13... Nb8 {[%clk 0:02:25.4]} 14. a4 {[%clk
0:02:52.5]} 14... a5 {[%clk 0:02:21.7]} 15. Ne3 {[%clk 0:02:24.4]} 15... Nd7
{[%clk 0:02:11.3]} 16. d4 {[%clk 0:02:23.1]} 16... d5 {[%clk 0:01:58.4]} 17.
exd5 {[%clk 0:02:11.1]} 17... Nxd5 {[%clk 0:01:59.3]} 18. Nxd5 {[%clk
0:02:09.1]} 18... Bxd5 {[%clk 0:01:59.2]} 19. Ng5+ {[%clk 0:01:48.7]} 19... Qxg5
{[%clk 0:01:50.8]} 20. Bxd5 {[%clk 0:01:49.6]} 20... Rad8 {[%clk 0:01:48.4]} 21.
dxc5 {[%clk 0:01:39.4]} 21... Nxc5 {[%clk 0:01:45.7]} 22. c4 {[%clk 0:01:39.2]}
22... Ne6 {[%clk 0:01:41.1]} 23. Re1 {[%clk 0:01:14.5]} 23... Nd4 {[%clk
0:01:29.6]} 24. f4 {[%clk 0:01:02.4]} 24... exf4 {[%clk 0:00:40.8]} 25. Bxd4
{[%clk 0:01:00.9]} 25... fxg3 {[%clk 0:00:41.2]} 26. Bxg7 {[%clk 0:00:47.8]}
26... gxh2+ {[%clk 0:00:41]} 27. Kh1 {[%clk 0:00:47.5]} 27... Kxg7 {[%clk
0:00:41.1]} 28. Qd4+ {[%clk 0:00:47.3]} 28... Kh7 {[%clk 0:00:39.9]} 29. Rf1
{[%clk 0:00:36.1]} 29... f6 {[%clk 0:00:33.7]} 30. Rae1 {[%clk 0:00:30.2]} 30...
Rd7 {[%clk 0:00:32.1]} 31. Qxb6 {[%clk 0:00:26.9]} 31... Rfd8 {[%clk 0:00:24.1]}
32. Qd4 {[%clk 0:00:20.6]} 32... f5 {[%clk 0:00:21]} 33. b6 {[%clk 0:00:20]}
33... h5 {[%clk 0:00:16.4]} 34. Qf4 {[%clk 0:00:18.6]} 34... Qf6 {[%clk
0:00:15.2]} 35. b7 {[%clk 0:00:18.5]} 35... Qb6 {[%clk 0:00:14.4]} 36. Rb1
{[%clk 0:00:18.4]} 36... Qc5 {[%clk 0:00:08.8]} 37. b8=Q {[%clk 0:00:17.8]}
37... Rxb8 {[%clk 0:00:09]} 38. Rxb8 {[%clk 0:00:17.9]} 38... Rxd5 {[%clk
0:00:09.5]} 39. cxd5 {[%clk 0:00:17.2]} 39... Qxd5+ {[%clk 0:00:09.7]} 40. Qf3
{[%clk 0:00:16.9]} 1-0

[Event "*** Titled Tuesday Blitz"]
[Site "Chess.com"]
[Date "2020.11.03"]
[Round "3"]
[White "Vanina1989"]
[Black "Ural_bogatyr"]
[Result "1-0"]
[WhiteElo "2603"]
[BlackElo "2381"]
[TimeControl "180+1"]
[EndTime "10:30:45 PST"]
[Termination "Vanina1989 won by resignation"]

1. d4 {[%clk 0:03:00.9]} 1... Nf6 {[%clk 0:02:59.5]} 2. c4 {[%clk 0:03:00.7]}
2... e5 {[%clk 0:02:59.5]} 3. dxe5 {[%clk 0:03:00.2]} 3... Ng4 {[%clk
0:02:59.8]} 4. Nf3 {[%clk 0:03:00.5]} 4... Bc5 {[%clk 0:03:00.3]} 5. e3 {[%clk
0:03:00.7]} 5... Nc6 {[%clk 0:03:01]} 6. Nc3 {[%clk 0:03:01.2]} 6... O-O {[%clk
0:03:00.7]} 7. Be2 {[%clk 0:03:01.4]} 7... Re8 {[%clk 0:03:00.5]} 8. O-O {[%clk
0:03:01.2]} 8... Ngxe5 {[%clk 0:03:01.1]} 9. Nd4 {[%clk 0:02:57.4]} 9... a5
{[%clk 0:02:51.3]} 10. b3 {[%clk 0:02:56.9]} 10... Qh4 {[%clk 0:02:42]} 11. Ndb5
{[%clk 0:02:40.1]} 11... Re6 {[%clk 0:02:24.6]} 12. g3 {[%clk 0:02:13.9]} 12...
Qh3 {[%clk 0:02:20.3]} 13. Qd5 {[%clk 0:02:13.9]} 13... Nb4 {[%clk 0:01:20.9]}
14. Qg2 {[%clk 0:02:05.1]} 14... Qxg2+ {[%clk 0:01:17.7]} 15. Kxg2 {[%clk
0:02:05.2]} 15... Na6 {[%clk 0:01:15.2]} 16. Bb2 {[%clk 0:02:02]} 16... c6
{[%clk 0:01:12.2]} 17. Nd4 {[%clk 0:02:01.3]} 17... Re8 {[%clk 0:01:10.9]} 18.
Rfd1 {[%clk 0:02:00.9]} 18... d6 {[%clk 0:01:10.5]} 19. Ne4 {[%clk 0:01:59.9]}
19... Nxc4 {[%clk 0:00:58.5]} 20. Nf6+ {[%clk 0:01:59.4]} 20... gxf6 {[%clk
0:00:57.3]} 21. bxc4 {[%clk 0:01:59.8]} 21... Nc7 {[%clk 0:00:52.7]} 22. Nb3
{[%clk 0:01:58.8]} 22... Kg7 {[%clk 0:00:42.5]} 23. Rd2 {[%clk 0:01:56.1]} 23...
Bb4 {[%clk 0:00:33.6]} 24. Rd4 {[%clk 0:01:53.9]} 24... a4 {[%clk 0:00:32.7]}
25. a3 {[%clk 0:01:21.2]} 25... axb3 {[%clk 0:00:19.3]} 26. axb4 {[%clk
0:01:21.2]} 26... Rxa1 {[%clk 0:00:20.2]} 27. Bxa1 {[%clk 0:01:21.6]} 27... Ne6
{[%clk 0:00:18.9]} 28. Rxd6 {[%clk 0:01:19.8]} 28... b5 {[%clk 0:00:16.2]} 29.
c5 {[%clk 0:01:05.1]} 29... Rd8 {[%clk 0:00:16.4]} 30. Bd1 {[%clk 0:00:59]}
30... Bb7 {[%clk 0:00:11.4]} 31. Rxd8 {[%clk 0:00:57.3]} 31... Nxd8 {[%clk
0:00:11.2]} 32. Bxb3 {[%clk 0:00:57.5]} 32... Ne6 {[%clk 0:00:10.2]} 33. f4
{[%clk 0:00:57.3]} 33... Nc7 {[%clk 0:00:09.5]} 34. e4 {[%clk 0:00:57.5]} 34...
Ne8 {[%clk 0:00:10]} 35. f5 {[%clk 0:00:56.3]} 35... Kf8 {[%clk 0:00:10.5]} 36.
Kf3 {[%clk 0:00:56.6]} 36... Bc8 {[%clk 0:00:10.7]} 37. g4 {[%clk 0:00:56.8]}
37... Ke7 {[%clk 0:00:11]} 38. Kf4 {[%clk 0:00:56.9]} 38... Nc7 {[%clk
0:00:11.3]} 39. h4 {[%clk 0:00:56.4]} 39... Na6 {[%clk 0:00:11.7]} 40. Bc3
{[%clk 0:00:56.6]} 40... Nb8 {[%clk 0:00:11.4]} 41. g5 {[%clk 0:00:54.1]} 41...
Nd7 {[%clk 0:00:11.9]} 42. Bd4 {[%clk 0:00:47.9]} 42... fxg5+ {[%clk 0:00:11.5]}
43. Kxg5 {[%clk 0:00:47.9]} 43... f6+ {[%clk 0:00:09.9]} 44. Kh6 {[%clk
0:00:48.2]} 44... Nf8 {[%clk 0:00:10.6]} 45. Kg7 {[%clk 0:00:47.8]} 45... Nd7
{[%clk 0:00:10.1]} 46. Be6 {[%clk 0:00:46.1]} 46... h5 {[%clk 0:00:07.6]} 47.
Bc3 {[%clk 0:00:45.2]} 1-0

[Event "*** Titled Tuesday Blitz"]
[Site "Chess.com"]
[Date "2020.11.03"]
[Round "3"]
[White "Onischuk_V"]
[Black "Mikhail_Golubev"]
[Result "1-0"]
[WhiteElo "2824"]
[BlackElo "2553"]
[TimeControl "180+1"]
[EndTime "10:30:47 PST"]
[Termination "Onischuk_V won by resignation"]

1. e4 {[%clk 0:03:00.2]} 1... c5 {[%clk 0:02:59.6]} 2. Ne2 {[%clk 0:02:57.8]}
2... Nf6 {[%clk 0:02:56]} 3. Nbc3 {[%clk 0:02:57.2]} 3... d6 {[%clk 0:02:55.8]}
4. g3 {[%clk 0:02:56.6]} 4... g6 {[%clk 0:02:51]} 5. d4 {[%clk 0:02:51.4]} 5...
cxd4 {[%clk 0:02:50.1]} 6. Nxd4 {[%clk 0:02:52]} 6... Nc6 {[%clk 0:02:47]} 7.
Bg2 {[%clk 0:02:51.5]} 7... Nxd4 {[%clk 0:02:46.1]} 8. Qxd4 {[%clk 0:02:51.4]}
8... Bg7 {[%clk 0:02:46.1]} 9. e5 {[%clk 0:02:51.5]} 9... Nd7 {[%clk 0:02:41.9]}
10. Qa4 {[%clk 0:02:51.7]} 10... O-O {[%clk 0:02:41.7]} 11. exd6 {[%clk
0:02:51.2]} 11... Nb6 {[%clk 0:02:38.9]} 12. Qf4 {[%clk 0:02:48.7]} 12... exd6
{[%clk 0:02:33.4]} 13. O-O {[%clk 0:02:47.7]} 13... d5 {[%clk 0:02:10.1]} 14.
Rd1 {[%clk 0:02:42.7]} 14... Be6 {[%clk 0:02:05.1]} 15. Be3 {[%clk 0:02:42.6]}
15... Rc8 {[%clk 0:01:49.4]} 16. Bd4 {[%clk 0:02:02.5]} 16... Rc4 {[%clk
0:01:47]} 17. Qe3 {[%clk 0:02:02.9]} 17... Re8 {[%clk 0:01:45]} 18. Bxg7 {[%clk
0:01:40.5]} 18... Kxg7 {[%clk 0:01:45.1]} 19. Qd2 {[%clk 0:01:37.6]} 19... Qc7
{[%clk 0:01:30.3]} 20. Nb5 {[%clk 0:01:36.8]} 20... Qc5 {[%clk 0:01:12.5]} 21.
Nd4 {[%clk 0:01:36.4]} 21... Bg4 {[%clk 0:01:03.9]} 22. f3 {[%clk 0:01:36.3]}
22... Bd7 {[%clk 0:00:59.8]} 23. c3 {[%clk 0:01:33.8]} 23... Qd6 {[%clk
0:00:49.8]} 24. Re1 {[%clk 0:01:30.7]} 24... Rcc8 {[%clk 0:00:49.4]} 25. Bf1
{[%clk 0:01:29.1]} 25... Qf6 {[%clk 0:00:46.3]} 26. Rxe8 {[%clk 0:01:22.2]}
26... Rxe8 {[%clk 0:00:45.6]} 27. Re1 {[%clk 0:01:22.8]} 27... Nc4 {[%clk
0:00:41.4]} 28. Bxc4 {[%clk 0:01:20.8]} 28... Rxe1+ {[%clk 0:00:41.1]} 29. Qxe1
{[%clk 0:01:20.6]} 29... dxc4 {[%clk 0:00:40.8]} 30. Kf2 {[%clk 0:01:13.8]}
30... b5 {[%clk 0:00:40]} 31. Qe4 {[%clk 0:01:09.8]} 31... a6 {[%clk 0:00:24.7]}
32. Qd5 {[%clk 0:01:07.7]} 32... Bc8 {[%clk 0:00:22.4]} 33. h4 {[%clk
0:01:06.6]} 33... h6 {[%clk 0:00:21.5]} 34. f4 {[%clk 0:00:59.2]} 34... Bg4
{[%clk 0:00:20.4]} 35. Ke3 {[%clk 0:00:45.6]} 35... Qe7+ {[%clk 0:00:17.6]} 36.
Qe5+ {[%clk 0:00:44.5]} 36... Kf8 {[%clk 0:00:16]} 37. Ke4 {[%clk 0:00:38.1]}
37... f6 {[%clk 0:00:15]} 38. Qxe7+ {[%clk 0:00:36]} 38... Kxe7 {[%clk
0:00:15.9]} 39. Kd5 {[%clk 0:00:36.3]} 39... Kd7 {[%clk 0:00:15.5]} 40. Kc5
{[%clk 0:00:33.7]} 40... Kc7 {[%clk 0:00:14.7]} 41. a4 {[%clk 0:00:31.8]} 41...
Bd7 {[%clk 0:00:13.1]} 42. axb5 {[%clk 0:00:31.1]} 42... axb5 {[%clk 0:00:12]}
43. Nxb5+ {[%clk 0:00:31.3]} 43... Kb7 {[%clk 0:00:06.4]} 44. Nd6+ {[%clk
0:00:31.3]} 44... Kc7 {[%clk 0:00:05.3]} 45. Nxc4 {[%clk 0:00:31.9]} 45... Be6
{[%clk 0:00:04.9]} 46. Ne3 {[%clk 0:00:31.8]} 1-0

[Event "*** Titled Tuesday Blitz"]
[Site "Chess.com"]
[Date "2020.11.03"]
[Round "3"]
[White "CarlssonLudvig"]
[Black "TorFredrikKaasen"]
[Result "0-1"]
[WhiteElo "2438"]
[BlackElo "2694"]
[TimeControl "180+1"]
[EndTime "10:30:47 PST"]
[Termination "TorFredrikKaasen won on time"]

1. e4 {[%clk 0:03:00.9]} 1... c5 {[%clk 0:02:59.1]} 2. Nc3 {[%clk 0:03:00.2]}
2... Nc6 {[%clk 0:02:57.7]} 3. Bb5 {[%clk 0:03:00]} 3... Nd4 {[%clk 0:02:55.2]}
4. Bc4 {[%clk 0:02:59.3]} 4... g6 {[%clk 0:02:55.3]} 5. Nf3 {[%clk 0:02:58.2]}
5... Bg7 {[%clk 0:02:53.6]} 6. Nxd4 {[%clk 0:02:58.4]} 6... cxd4 {[%clk
0:02:52.4]} 7. Qf3 {[%clk 0:02:58.8]} 7... Nf6 {[%clk 0:02:49]} 8. e5 {[%clk
0:02:50.7]} 8... dxc3 {[%clk 0:02:44.6]} 9. dxc3 {[%clk 0:02:31.6]} 9... O-O
{[%clk 0:02:39.4]} 10. exf6 {[%clk 0:02:29.5]} 10... Bxf6 {[%clk 0:02:38.7]} 11.
Bh6 {[%clk 0:02:26.2]} 11... Re8 {[%clk 0:02:32.3]} 12. h4 {[%clk 0:01:47.8]}
12... e6 {[%clk 0:02:23.7]} 13. O-O-O {[%clk 0:01:35]} 13... d5 {[%clk
0:02:23.5]} 14. Bb5 {[%clk 0:01:21.5]} 14... Rf8 {[%clk 0:01:47]} 15. Bxf8
{[%clk 0:01:16.1]} 15... Kxf8 {[%clk 0:01:45.6]} 16. Kb1 {[%clk 0:00:55]} 16...
h5 {[%clk 0:01:43.3]} 17. g4 {[%clk 0:00:51.7]} 17... hxg4 {[%clk 0:01:41.6]}
18. Qxg4 {[%clk 0:00:51.7]} 18... e5 {[%clk 0:01:38.4]} 19. Qf3 {[%clk
0:00:44.4]} 19... e4 {[%clk 0:01:18.4]} 20. Qf4 {[%clk 0:00:42.1]} 20... Kg7
{[%clk 0:01:14.7]} 21. h5 {[%clk 0:00:39.8]} 21... g5 {[%clk 0:01:14.9]} 22. h6+
{[%clk 0:00:35.7]} 22... Kh7 {[%clk 0:01:15.2]} 23. Qg3 {[%clk 0:00:28.5]} 23...
Be6 {[%clk 0:01:11.5]} 24. f4 {[%clk 0:00:13.8]} 24... Qd6 {[%clk 0:01:04.9]}
25. Rdf1 {[%clk 0:00:10.5]} 25... Rg8 {[%clk 0:01:01.1]} 26. Rhg1 {[%clk
0:00:10.4]} 26... Rg6 {[%clk 0:00:47.5]} 27. Be2 {[%clk 0:00:09.8]} 27... gxf4
{[%clk 0:00:45]} 28. Qh2 {[%clk 0:00:06.9]} 28... Bg5 {[%clk 0:00:27.2]} 29. c4
{[%clk 0:00:03.6]} 29... Qe5 {[%clk 0:00:25.7]} 30. cxd5 {[%clk 0:00:03.4]}
30... Bxd5 {[%clk 0:00:25]} 31. Re1 {[%clk 0:00:02.6]} 31... Rb6 {[%clk
0:00:23.7]} 32. c3 {[%clk 0:00:02.4]} 32... Qxc3 {[%clk 0:00:17.7]} 33. Bg4
{[%clk 0:00:02.8]} 33... Qc4 {[%clk 0:00:13.6]} 34. Bf5+ {[%clk 0:00:02.6]}
34... Kh8 {[%clk 0:00:13.9]} 35. Rxg5 {[%clk 0:00:01.5]} 35... Qxa2+ {[%clk
0:00:13.9]} 0-1

[Event "*** Titled Tuesday Blitz"]
[Site "Chess.com"]
[Date "2020.11.03"]
[Round "3"]
[White "Peng_Li-Min"]
[Black "Dinamo3"]
[Result "0-1"]
[WhiteElo "2614"]
[BlackElo "2422"]
[TimeControl "180+1"]
[EndTime "10:30:48 PST"]
[Termination "Dinamo3 won by resignation"]

1. Nf3 {[%clk 0:03:00.9]} 1... Nf6 {[%clk 0:02:59.8]} 2. c4 {[%clk 0:03:00.8]}
2... g6 {[%clk 0:02:59.6]} 3. b3 {[%clk 0:03:01.1]} 3... Bg7 {[%clk 0:02:59.9]}
4. Bb2 {[%clk 0:03:01.6]} 4... O-O {[%clk 0:03:00.6]} 5. g3 {[%clk 0:03:01.5]}
5... d6 {[%clk 0:03:01.1]} 6. d4 {[%clk 0:03:00.7]} 6... Nc6 {[%clk 0:02:59.1]}
7. d5 {[%clk 0:02:59]} 7... Na5 {[%clk 0:02:57.9]} 8. Bg2 {[%clk 0:02:51.1]}
8... c5 {[%clk 0:02:58.1]} 9. dxc6 {[%clk 0:02:47.3]} 9... Nxc6 {[%clk
0:02:54.1]} 10. O-O {[%clk 0:02:45.1]} 10... Bd7 {[%clk 0:02:50.2]} 11. Nd4
{[%clk 0:02:38]} 11... Nxd4 {[%clk 0:02:46.2]} 12. Qxd4 {[%clk 0:02:38.9]} 12...
Bc6 {[%clk 0:02:44.8]} 13. e4 {[%clk 0:02:37.8]} 13... Qa5 {[%clk 0:02:27.6]}
14. Qd3 {[%clk 0:02:08]} 14... Rfc8 {[%clk 0:02:21.4]} 15. Nc3 {[%clk
0:01:55.7]} 15... a6 {[%clk 0:02:19.3]} 16. a3 {[%clk 0:01:48.5]} 16... b5
{[%clk 0:02:15.1]} 17. cxb5 {[%clk 0:01:45.1]} 17... axb5 {[%clk 0:02:05.6]} 18.
b4 {[%clk 0:01:42.1]} 18... Qb6 {[%clk 0:02:05.8]} 19. Rac1 {[%clk 0:01:32.6]}
19... Nd7 {[%clk 0:02:01.6]} 20. Qe2 {[%clk 0:00:48.1]} 20... Qb7 {[%clk
0:01:43.9]} 21. Nd5 {[%clk 0:00:43.9]} 21... Bxd5 {[%clk 0:01:37.5]} 22. exd5
{[%clk 0:00:44.8]} 22... Bxb2 {[%clk 0:01:36.3]} 23. Qxb2 {[%clk 0:00:45.4]}
23... Nb6 {[%clk 0:01:36.8]} 24. Rc6 {[%clk 0:00:24.8]} 24... Nc4 {[%clk
0:01:33.7]} 25. Qd4 {[%clk 0:00:23.3]} 25... Rxa3 {[%clk 0:01:28.7]} 26. Re1
{[%clk 0:00:22.5]} 26... Rca8 {[%clk 0:01:22.9]} 27. h4 {[%clk 0:00:20.3]} 27...
h5 {[%clk 0:01:22.2]} 28. g4 {[%clk 0:00:20]} 28... hxg4 {[%clk 0:01:18.1]} 29.
h5 {[%clk 0:00:19.1]} 29... g3 {[%clk 0:00:45.1]} 30. hxg6 {[%clk 0:00:09.4]}
30... gxf2+ {[%clk 0:00:44.4]} 31. Qxf2 {[%clk 0:00:10.3]} 31... fxg6 {[%clk
0:00:35.6]} 32. Qh4 {[%clk 0:00:10.8]} 32... Qa7+ {[%clk 0:00:30.5]} 33. Kh2
{[%clk 0:00:09.5]} 33... Re3 {[%clk 0:00:20.6]} 34. Rf1 {[%clk 0:00:04.6]} 34...
Ne5 {[%clk 0:00:18]} 35. Bh3 {[%clk 0:00:04.5]} 35... Qa2+ {[%clk 0:00:16.4]}
36. Kh1 {[%clk 0:00:05]} 36... Rxh3+ {[%clk 0:00:11.8]} 37. Qxh3 {[%clk
0:00:04.2]} 37... Qxd5+ {[%clk 0:00:12.4]} 38. Qg2 {[%clk 0:00:04.7]} 38...
Qxg2+ {[%clk 0:00:12.7]} 39. Kxg2 {[%clk 0:00:05.5]} 39... Nxc6 {[%clk
0:00:13.4]} 0-1